Cogmind - Beta 13 @@@ ROGUE MODE // 2024.06.03 @ 19:35:36 Player: Some Pennies Result: Self-destructed Performance ------------- Evolutions (3) 1500 Regions Visited (6) 1200 Robots Destroyed (120) 600 Value Destroyed (2767) 2767 Prototype IDs (18) 360 Alien Tech Used (0) 0 Bonus (115) 115 TOTAL SCORE: 6542 Bonus ------- High Alert Combat Kills 115 Cogmind --------- Core Integrity 505/700 Matter 300/300 Energy 150/150 System Corruption 0% Temperature Cool (0) Movement Flying (280) Ox3 Location -7/Factory Parts ------- > --- POWER (1) -------- Micro Nuclear Core > --- PROPULSION (5) --- Xenon Bombardment Thruster > --- UTILITY (5) ------ Medium Storage Unit Improved Signal Interpreter Hacking Suite Hacking Suite > --- WEAPON (2) ------- Improved Datajack Powered Hammer > --- INVENTORY (10) --- Micro Nuclear Core Field Propulsion Drive Field Propulsion Drive Improved Cooling System ECM Suite Improved Light Armor Plating Improved Medium Armor Plating Advanced Assault Cannon Advanced Assault Cannon Missile Launcher Peak State ------------ > --- POWER ------------ Micro Nuclear Core > --- PROPULSION ------- Xenon Bombardment Thruster Xenon Bombardment Thruster Xenon Bombardment Thruster Xenon Bombardment Thruster Field Propulsion Drive > --- UTILITY ---------- Medium Storage Unit Experimental Sensor Array Improved Signal Interpreter Hacking Suite Hacking Suite > --- WEAPON ----------- Improved Datajack Heavy Flail > --- INVENTORY -------- Micro Nuclear Core Xenon Bombardment Thruster Improved Cooling System ECM Suite Improved Light Armor Plating Improved Medium Armor Plating Advanced Assault Cannon Advanced Assault Cannon Missile Launcher Missile Launcher [Rating: 54] Favorites ----------- Power Light Nuclear Core Engine Light Deuterium Engine Power Core Light Nuclear Core Propulsion Light Treads Treads Light Treads Leg Aluminum Leg Wheel Wheel Flight Unit Xenon Bombardment Thruster Utility Improved Heat Sink Device Improved Heat Sink Storage High-capacity Storage Unit Processor Improved Signal Interpreter Hackware Hacking Suite Protection Hardened Medium Armor Plating Weapon Particle Gun Energy Gun Particle Gun Energy Cannon Ion Cannon Ballistic Gun Assault Rifle Ballistic Cannon Assault Cannon Impact Weapon Heavy Flail Slashing Weapon Katana Special Melee Weapon Improved Datajack Build | -11 -10 -10 -10 -9 -8 -7 ------- Run | Yrd Mat Min Exi Min Mat Fac Slots Evolved 6 | . . . . . 4 2 Power . | . . . . . . . Propulsion 3 | . . . . . 2 1 Utility 3 | . . . . . 2 1 Weapon . | . . . . . . . Parts Attached 129 | 8 19 2 4 4 47 45 Power 12 | 1 3 1 . . 5 2 Engine 6 | 1 2 . . . 3 . Core 6 | . 1 1 . . 2 2 Reactor . | . . . . . . . Propulsion 41 | 3 6 . . 1 17 14 Treads 25 | 2 6 . . 1 16 . Leg 1 | . . . . . 1 . Wheel 1 | 1 . . . . . . Hover . | . . . . . . . Flight 14 | . . . . . . 14 Utility 44 | 2 5 1 4 3 13 16 Device 24 | 1 3 1 1 2 6 10 Storage 9 | 1 2 . 3 1 . 2 Processor 2 | . . . . . . 2 Hackware 2 | . . . . . 1 1 Protection 7 | . . . . . 6 1 Artifact . | . . . . . . . Weapon 32 | 2 5 . . . 12 13 Energy Gun 7 | . 3 . . . 4 . Energy Cannon 7 | . . . . . 7 . Ballistic Gun 4 | 2 2 . . . . . Ballistic Cannon 3 | . . . . . 1 2 Launcher . | . . . . . . . Special Weapon . | . . . . . . . Impact Weapon 6 | . . . . . . 6 Slashing Weapon 3 | . . . . . . 3 Piercing Weapon . | . . . . . . . Special Melee Weapon 2 | . . . . . . 2 Unidentified Prototypes 6 | . . . . 1 5 . Parts Lost 15 | . 2 2 . . 4 7 Power 3 | . 1 1 . . . 1 Propulsion 7 | . . . . . 2 5 Utility 4 | . 1 1 . . 1 1 Weapon 1 | . . . . . 1 . Highest Loss Streak 5 | . 1 2 . . 2 5 To Critical Strikes . | . . . . . . . Average Slot Usage (%) 99 | . 98 99 99 98 99 99 Engine 3 | . 4 . . . 5 . Core 7 | . 8 13 14 14 3 6 Treads 26 | . 26 28 28 27 35 . Flight 6 | . . . . . . 37 Device 11 | . 13 13 13 14 11 6 Storage 10 | . 14 14 14 14 9 7 Processor 1 | . . . . . . 7 Hackware 5 | . . . . . 7 14 Protection 3 | . . . . . 7 . Energy Gun 11 | . 23 28 28 28 2 . Energy Cannon 6 | . . . . . 13 . Impact Weapon 1 | . . . . . . 6 Naked Turns . | . . . . . . . Heaviest Build 69 | 13 32 32 32 52 69 35 Greatest Support 112 | 40 40 40 40 40 112 31 Greatest Overweight (x) 18 | 1 1 . . 1 18 1 Average Overweight (x) . | . . . . . . . Largest Inventory Capacity 20 | 8 15 15 20 20 20 20 Average Capacity 15 | 7 9 15 15 15 20 10 Most Carried 20 | 5 12 13 15 15 20 19 Average Carried 14 | 2 9 11 13 14 19 9 Final Capacity 20 | 8 15 15 15 20 20 10 Final Carried 20 | 4 11 13 14 15 20 10 Class Distribution -------------------- 67% | Scavenger-Mutant 16% | Hacker-Sprinter 15% | Mutant Dominant Class ---------------- Scavenger-Mutant | -10/Materials Scavenger-Mutant | -10/Mines Scavenger-Mutant | -10/Exiles Scavenger-Mutant | -9/Mines Scavenger-Mutant | -8/Materials Hacker-Sprinter | -7/Factory Resources | -11 -10 -10 -10 -9 -8 -7 ----------- Run | Yrd Mat Min Exi Min Mat Fac Matter Collected 1716 | 175 391 26 . 67 595 462 Remotely . | . . . . . . . Salvage Created 4212 | 34 762 414 . 47 2346 609 Parts 203 | 6 49 22 . 2 109 15 Haulers Intercepted 11 | . 1 . . . 5 5 Recyclers Shooed 7 | . 1 3 . . 2 1 Parts Field Recycled . | . . . . . . . Retrieved Matter . | . . . . . . . Parts Self-Destructed . | . . . . . . . Prevented . | . . . . . . . Kills | -11 -10 -10 -10 -9 -8 -7 ------- Run | Yrd Mat Min Exi Min Mat Fac Combat Hostiles Destroyed 64 | . 14 11 . 1 36 2 Guns 30 | . 11 11 . 1 7 . Cannons 29 | . . . . . 28 1 Classes Destroyed 12 | 1 6 1 . 1 3 . Worker 11 | . 1 . . . 6 4 Builder 2 | . . . . . 2 . Tunneler 4 | 2 . . . . 1 1 Hauler 11 | . 1 . . . 5 5 Recycler 8 | . 1 2 . . 4 1 Mechanic 1 | . . . . . 1 . Operator 6 | . 1 . . . 3 2 Watcher 13 | . 3 . . . 5 5 Swarmer 17 | . . 6 . . 10 1 Grunt 39 | . 14 5 . . 20 . Duelist 1 | . . . . 1 . . Sentry 7 | . . . . . 6 1 Best Kill Streak 5 | 2 4 4 . 1 5 3 Combat Bots Only 4 | . 4 3 . 1 4 1 Max Kills in Single Turn 2 | 2 1 2 . 1 2 1 Gunslinging 1 | . . 1 . . 1 . Exploded . | . . . . . . . Melee . | . . . . . . . Uniques/NPCs Destroyed . | . . . . . . . Combat | -11 -10 -10 -10 -9 -8 -7 -------- Run | Yrd Mat Min Exi Min Mat Fac Hostile Shots Fired 349 | . 62 43 . 1 201 42 Missed 78 | . 13 11 . . 44 10 Damage Taken 3766 | . 659 359 . 58 2061 629 Core 493 | . 96 86 . . 116 195 Absorbed by Shields 152 | . . . . . 152 . Regen/Repaired (Parts) 699 | . 272 . . . 388 39 Core Remaining (%) 68 | 100 . . . 27 78 . Volleys Fired 266 | 4 58 34 . 3 164 3 Largest 2 | 2 2 2 . 2 2 2 Hottest 136 | 40 130 130 . 130 136 96 Shots Fired 532 | 8 116 68 . 6 328 6 Gun 247 | 8 116 68 . 6 49 . Cannon 285 | . . . . . 279 6 Launcher . | . . . . . . . Special . | . . . . . . . Kinetic 68 | 8 33 . . . 21 6 Thermal 464 | . 83 68 . 6 307 . Explosive . | . . . . . . . Electromagnetic . | . . . . . . . Robot Hit Streak 18 | 1 18 6 . 3 17 3 Robot Miss Streak 6 | 3 2 5 . 1 6 1 Penetration Max . | . . . . . . . Secondary Targets 6 | . 1 4 . . 1 . Max Gunslinging Chain 1 | . 1 1 . . 1 . Shots Hit Robots 376 | 3 79 43 . 3 208 40 Core Hits 141 | 2 27 18 . 2 83 9 Critical Kills 2 | . . . . . 1 1 Critical Parts Destroyed 3 | . . . . . . 3 Critical Strikes 18 | . 3 3 . 1 7 4 Burn 12 | . 3 3 . 1 5 . Meltdown 1 | . . . . . 1 . Blast 1 | . . . . . 1 . Smash 4 | . . . . . . 4 Melee Attacks 64 | . . . . . . 64 Impact 53 | . . . . . . 53 Slashing 11 | . . . . . . 11 Piercing . | . . . . . . . Sneak Attacks 15 | . . . . . . 15 Combat Hostiles . | . . . . . . . Follow-up Attacks 1 | . . . . . . 1 Damage Inflicted 9419 | 45 1216 708 . 50 4689 2711 Guns 2542 | 45 1216 708 . 50 523 . Cannons 4304 | . . . . . 4166 138 Explosions . | . . . . . . . Melee 2573 | . . . . . . 2573 Ramming . | . . . . . . . Kinetic 773 | 45 251 . . . 339 138 Thermal 6073 | . 965 708 . 50 4350 . Explosive . | . . . . . . . Electromagnetic . | . . . . . . . Impact 2289 | . . . . . . 2289 Slashing 284 | . . . . . . 284 Piercing . | . . . . . . . Highest Corruption 2 | . 2 2 2 2 2 2 Average Corruption 1 | . 2 2 2 2 2 1 Corruption Purged 2 | . . . . . . 2 Corruption Blocked . | . . . . . . . Effects 38 | . 11 11 5 1 7 3 Message Errors 9 | . 3 1 . . 3 2 Matter Fused 6 | . 2 1 2 . . 1 Heat Flow Errors 8 | . 1 3 2 . 2 . Energy Discharges 3 | . 1 2 . . . . Parts Fused 1 | . . 1 . . . . Data Loss (minor) 10 | . 4 2 1 1 2 . Alerts 1 | . . 1 . . . . Overload Shots . | . . . . . . . Overflow Damage 956 | . . . . . 71 885 Projectiles 71 | . . . . . 71 . Explosions . | . . . . . . . Melee 885 | . . . . . . 885 Knockbacks 7 | . . . . . 3 4 Impact 4 | . . . . . . 4 Kinetic 3 | . . . . . 3 . Secondary . | . . . . . . . Self-Inflicted Damage . | . . . . . . . Shots . | . . . . . . . Rammed . | . . . . . . . Targets Rammed . | . . . . . . . Kicked . | . . . . . . . Crushed . | . . . . . . . Highest Temperature 409 | . 315 269 184 99 409 201 Average Temperature 55 | . 68 90 87 50 84 16 Received Heat Transfer 1704 | . 384 144 . . 1110 66 Effects 6 | . . . . . 6 . Shutdowns 1 | . . . . . 1 . Energy Bleed 1 | . . . . . 1 . Damage (major) 4 | . . . . . 4 . Siege Activations . | . . . . . . . Robots Corrupted . | . . . . . . . Combat Hostiles . | . . . . . . . Parts Fried 20 | . . . . . . 20 Impact Corruptions 30 | . . . . . . 30 Robots Melted 4 | . 3 . . . 1 . Combat Hostiles 4 | . 3 . . . 1 . Parts Melted 14 | . 4 1 . 1 8 . Heat Transferred 12284 | . 2405 1813 . 185 7881 . Parts Sabotaged . | . . . . . . . Parts Stolen . | . . . . . . . Parts Stripped . | . . . . . . . Power Chain Reactions . | . . . . . . . Alert | -11 -10 -10 -10 -9 -8 -7 ------- Run | Yrd Mat Min Exi Min Mat Fac Peak Influence 530 | 10 200 154 . 30 530 490 Initial 233 | . 6 9 . . 11 233 Average 237 | 2 58 46 . 20 336 376 Maximum Alert Level 2 | . 1 . . . 2 2 Low Security (%) 40 | 100 97 100 . 100 8 . Level 1 37 | . 2 . . . 56 63 Level 2 22 | . . . . . 34 36 Level 3 . | . . . . . . . Level 4 . | . . . . . . . Level 5 . | . . . . . . . High Security . | . . . . . . . Max Security . | . . . . . . . Squads Dispatched 14 | . 5 . . . 5 4 Investigation 7 | . 4 . . . 2 1 Extermination 1 | . . . . . . 1 Reinforcement 6 | . 1 . . . 3 2 Assault . | . . . . . . . Garrison . | . . . . . . . Intercept . | . . . . . . . Searches Triggered . | . . . . . . . Construction Impeded . | . . . . . . . Haulers Reinforced 1 | . . . . . . 1 Active Scanning Responses . | . . . . . . . Cargo Convoy Interrupts . | . . . . . . . Stealth | -11 -10 -10 -10 -9 -8 -7 --------- Run | Yrd Mat Min Exi Min Mat Fac Distress Signals 4 | . . . . . 4 . Communications Jammed . | . . . . . . . Distress Signals . | . . . . . . . Times Spotted 112 | . 21 12 . 1 60 18 Peak Tracking Total 5 | . 4 4 . 1 5 4 Tactical Retreats 14 | . 2 1 . . 6 5 Traps | -11 -10 -10 -10 -9 -8 -7 ------- Run | Yrd Mat Min Exi Min Mat Fac Traps Triggered 14 | . 5 . . 2 3 4 Indirectly . | . . . . . . . Trap Hack Attempts . | . . . . . . . Triggered . | . . . . . . . Disarmed . | . . . . . . . Reprogrammed 6 | . . . . . 6 . Reused . | . . . . . . . Traps Extracted . | . . . . . . . Installed . | . . . . . . . Triggered . | . . . . . . . Machines | -11 -10 -10 -10 -9 -8 -7 ---------- Run | Yrd Mat Min Exi Min Mat Fac Machines Disabled 1 | . . 1 . . . . Max in Single Turn 1 | . . 1 . . . . Garrison Access 3 | . . . . . 1 2 Machines Repaired . | . . . . . . . Machines Dismantled . | . . . . . . . Machines Sabotaged . | . . . . . . . Overloaded Fab Kills . | . . . . . . . Hacking | -11 -10 -10 -10 -9 -8 -7 --------- Run | Yrd Mat Min Exi Min Mat Fac Machines Accessed 38 | . 7 . 1 1 11 18 Terminals 21 | . 6 . . . 7 8 Fabricators 2 | . . . . . . 2 Repair Stations 5 | . 1 . . . 2 2 Recycling Units 3 | . . . . . . 3 Scanalyzers 2 | . . . . . 1 1 Garrison Access 3 | . . . . . 1 2 Total Hacks 128 | . 37 . 1 1 45 44 Successful 78 | . 18 . 1 1 27 31 Failed 49 | . 19 . . . 17 13 Catastrophic 5 | . 4 . . . 1 . Database Lockouts 1 | . . . . . 1 . Manual 44 | . 16 . . . 13 15 Terminals 82 | . 28 . . . 32 22 Fabricators 2 | . . . . . . 2 Repair Stations 22 | . 9 . . . 8 5 Recycling Units 7 | . . . . . . 7 Scanalyzers 10 | . . . . . 4 6 Garrison Access 3 | . . . . . 1 2 Terminal Hacks 34 | . 10 . 1 1 15 7 Record 1 | . . . 1 . . . Robot Analysis 9 | . 7 . . . 2 . Prototype ID Bank 7 | . . . . . 4 3 Open Door 1 | . . . . 1 . . Branch Access Points 1 | . . . . . 1 . Unreport Threat 2 | . 1 . . . 1 . Locate Traps 5 | . . . . . 4 1 Reprogram Traps 1 | . . . . . 1 . Hauler Manifests 2 | . 1 . . . 1 . Registered Components 1 | . . . . . 1 . Zone Layout 4 | . 1 . . . . 3 Fabricator Hacks 2 | . . . . . . 2 Network Status 2 | . . . . . . 2 Repair Station Hacks 18 | . 8 . . . 6 4 Scan Component 9 | . 4 . . . 3 2 Repair 9 | . 4 . . . 3 2 Recycling Unit Hacks 2 | . . . . . . 2 Retrieve Components 2 | . . . . . . 2 Scanalyzer 7 | . . . . . 2 5 Insert Component 4 | . . . . . 1 3 Analyze 3 | . . . . . 1 2 Garrison Access Hacks 3 | . . . . . 1 2 Seal Access 3 | . . . . . 1 2 Unauthorized Hacks 12 | . . . . . 3 9 Terminals 10 | . . . . . 3 7 Botnet 9 | . . . . . 3 6 Operators 1 | . . . . . . 1 Fabricators . | . . . . . . . Repair Stations . | . . . . . . . Recycling Units 2 | . . . . . . 2 Recyclers 1 | . . . . . . 1 Mask 1 | . . . . . . 1 Scanalyzers . | . . . . . . . Garrison Access . | . . . . . . . Data Cores Recovered 1 | . . . . . . 1 Used 1 | . . . . . . 1 Hacking Detections 29 | . 7 . . . 8 14 Full Trace Events 6 | . 5 . . . . 1 Feedback Events 1 | . 1 . . . . . Corruption 1 | . 1 . . . . . Feedback Blocked . | . . . . . . . Robot Schematics Acquired . | . . . . . . . Robots Built . | . . . . . . . Authchips . | . . . . . . . Time . | . . . . . . . Total Robot Build Rating . | . . . . . . . Part Schematics Acquired 3 | . . . . . 1 2 Parts Built . | . . . . . . . Authchips . | . . . . . . . Time . | . . . . . . . Total Part Build Rating . | . . . . . . . Parts Repaired 9 | . 4 . . . 3 2 Time 388 | . 122 . . . 184 82 Parts Recycled . | . . . . . . . Recycled Matter . | . . . . . . . Retrieved Matter . | . . . . . . . Retrieved Components . | . . . . . . . Parts Scanalyzed 3 | . . . . . 1 2 Part Schematics Acquired 3 | . . . . . 1 2 Parts Damaged . | . . . . . . . Bothacking | -11 -10 -10 -10 -9 -8 -7 ------------ Run | Yrd Mat Min Exi Min Mat Fac Used RIF Installer . | . . . . . . . Robots Hacked . | . . . . . . . Non-combat . | . . . . . . . Combat . | . . . . . . . Robot Hacks Applied . | . . . . . . . Relay Couplers Released . | . . . . . . . Fabnet Peak Effective % . | . . . . . . . Robots Rewired . | . . . . . . . Allies Hacked . | . . . . . . . Hacks Repelled . | . . . . . . . Allies | -11 -10 -10 -10 -9 -8 -7 -------- Run | Yrd Mat Min Exi Min Mat Fac Total Allies . | . . . . . . . Largest Group . | . . . . . . . Highest-Rated Group . | . . . . . . . Highest-Rated Ally . | . . . . . . . Total Orders . | . . . . . . . Ally Attacks . | . . . . . . . Total Damage . | . . . . . . . Kills . | . . . . . . . Allies Corrupted . | . . . . . . . Allies Melted . | . . . . . . . Intel | -11 -10 -10 -10 -9 -8 -7 ------- Run | Yrd Mat Min Exi Min Mat Fac Robot Analysis Total 9 | . 7 . . . 2 . Derelict Logs Recovered 3 | . . 2 . 1 . . Drone Launches . | . . . . . . . Drone Recoveries . | . . . . . . . Exploration | -11 -10 -10 -10 -9 -8 -7 ------------- Run | Yrd Mat Min Exi Min Mat Fac Turns Passed 6967 | 68 1423 862 248 139 3087 1140 Spaces Moved 5341 | 45 679 469 151 75 1416 2506 Core 15 | 14 . . . . 1 . Treads 2744 | 2 632 469 151 75 1415 . Legs . | . . . . . . . Wheels 76 | 29 47 . . . . . Hover . | . . . . . . . Flight 2506 | . . . . . . 2506 Fastest Speed 27 | 50 95 160 160 160 160 27 Average Speed 97 | 83 155 160 160 163 162 27 Slowest Speed 950 | 160 160 160 160 240 950 107 Overloaded Moves . | . . . . . . . Propulsion Burnouts . | . . . . . . . Robots Hopped 3 | . . . . . . 3 Cave-ins Triggered . | . . . . . . . Exploration Rate (%) 54 | 4 75 95 49 19 80 57 Regions Visited 6 Branch Regions 3 Pre-discovered Areas 2 | . . 1 1 . . . Known Exits Taken 1 | . . . 1 . . . Unknown Exits Taken 5 | 1 1 1 . 1 1 . Scrap Searched 1 | . . 1 . . . . Spaces Dug 16 | . . . . . . 16 Terrain Destroyed 29 | . . . . . 13 16 Melee 16 | . . . . . . 16 Projectile 13 | . . . . . 13 . AOE . | . . . . . . . Terrain Rammed . | . . . . . . . Walls Destroyed . | . . . . . . . Machines Disabled . | . . . . . . . Actions | -11 -10 -10 -10 -9 -8 -7 --------- Run | Yrd Mat Min Exi Min Mat Fac Total 6491 | 66 937 513 157 86 1892 2840 Wait 511 | . 145 5 . 1 177 183 Move 5329 | 44 678 468 150 74 1415 2500 Hop 3 | . . . . . . 3 Pick Up 97 | 10 20 4 2 3 40 18 Fast Attach 33 | 1 6 . . . 15 11 Attach 32 | 6 3 2 1 1 12 7 Detach . | . . . . . . . Swap 64 | 1 10 . 3 3 20 27 Drop 97 | . 17 . 1 1 49 29 Fire 266 | 4 58 34 . 3 164 3 Melee 59 | . . . . . . 59 Ram . | . . . . . . . Kick . | . . . . . . . Crush . | . . . . . . . Escape Stasis . | . . . . . . . Rewire . | . . . . . . . Trap . | . . . . . . . Miscellaneous . | . . . . . . . Route ------- -11/Scrapyard -10/Materials (discovered 2 exits: [*Mat] / [*Min]) -10/Mines (discovered 3 exits: [*Mat x2] / *Exi) -10/Exiles (discovered 2 exits: *Min x2) -9/Mines -8/Materials (discovered 2 exits: *Fac x2) -7/Factory (discovered 2 exits: *Fac x2) History --------- Turn | Location | Event 8 | -11/Scrapyard | Discovered new exit (range 15) 69 | -11/Scrapyard | Entered Materials 316 | -10/Materials | Build established: Mutant 546 | -10/Materials | Discovered new exit (range 5) 692 | -10/Materials | Repaired Lgt. Treads 725 | -10/Materials | Repaired Particle Gun 752 | -10/Materials | Repaired Lgt. Treads 792 | -10/Materials | Repaired Imp. Heat Sink 792 | -10/Materials | Build established: Scavenger-Mutant 1302 | -10/Materials | Discovered new exit (range 9) 1492 | -10/Materials | Entered Mines 1653 | -10/Mines | Discovered new exit (range 7) 1834 | -10/Mines | Learned location of Mines (-9) 1949 | -10/Mines | Discovered new exit (range 9) 2074 | -10/Mines | Received a Rocket Launcher from a helpful Derelict 2089 | -10/Mines | Deemed a non-threat by the Exiles lab entrance 2089 | -10/Mines | Discovered new exit (range 5) 2174 | -10/Mines | Core integrity fell below 50% 2246 | -10/Mines | Found a damaged Exp. Sensor Array with a note attached 2249 | -10/Mines | Found Prototype Device 2354 | -10/Mines | Entered Exiles 2355 | -10/Exiles | Identified exit to Mines 2394 | -10/Exiles | Met 8R-AWN 2422 | -10/Exiles | Met EX-HEX 2484 | -10/Exiles | Met EX-DEC 2490 | -10/Exiles | Learned location of Zion (-7) 2602 | -10/Exiles | Entered Mines 2613 | -9/Mines | Met a Derelict who couldn't figure out how to use a Trap Extractor 2711 | -9/Mines | Discovered new exit (range 16) 2737 | -9/Mines | Identified Exp. Sensor Array 2741 | -9/Mines | Entered Materials 2741 | -8/Materials | Evolved 4 slots: Propulsion x2, Utility x2 3205 | -8/Materials | Build established: Mutant 3534 | -8/Materials | Build established: Scavenger-Mutant 3535 | -8/Materials | Discovered new exit (range 12) 3671 | -8/Materials | Repaired Arm. Treads 4223 | -8/Materials | Repaired Exp. Sensor Array 4384 | -8/Materials | Central database locked down 4901 | -8/Materials | Repaired Hrd. Medium Armor Plating 5138 | -8/Materials | Discovered new exit (range 7) 5828 | -8/Materials | Entered Factory 5828 | -7/Factory | Evolved 2 slots: Propulsion x1, Utility x1 6117 | -7/Factory | Build established: Hacker-Sprinter 6304 | -7/Factory | Discovered new exit (range 12) 6366 | -7/Factory | Discovered new exit (range 12) 6378 | -7/Factory | Identified exit to Factory 6436 | -7/Factory | Repaired Xenon Bombardment Thruster? 6479 | -7/Factory | Repaired Cesium-ion Thruster 6968 | -7/Factory | Self-destructed Last Messages --------------- 06842_ Connecting with Terminal... 06917_ Triggered Ambush Trap. 06917_ L-41 Fighter emerges from a hatch in the floor. 06917_ G-47 Trooper emerges from a hatch in the floor. 06917_ S-27 Virus emerges from a hatch in the floor. 06919_ U-05 Engineer lays Concrete. 06953_ Destroyed Lgt. Nuclear Core. 06953_ Destroyed Unknown Flight Unit. 06953_ S-27 Virus system corrupted by crushing effect. 06954_ S-27 Virus system terminally corrupted. 06955_ Xenon Bombardment Thruster destroyed. 06957_ Exp. Sensor Array destroyed. 06959_ Powered Hammer severed. 06961_ Acquired Powered Hammer. 06962_ Xenon Bombardment Thruster destroyed. Map ----- +----------------------------------------------------+ | ??????# """" """" !#??????????????????????# """""" | | ??????# """" """" #??????????????????????# """""" | | ??????# """" """" #??????????????????????# """""" | | ??????# #??????????????????????# """""" | | ??????# #??????????????????????# | | #######"#####+####"######################## | | # + ] ! | | """"" # #####################" ########### | | ""Y"" # #???????????????????#"T#?????????? | | + +???????????????????####?????????? | | * # #????????????????????????????????? | | # #????????????????????????????????? | | # #????????????????????????????????? | | """"""" # #????????????????????????????????? | | """"""" # #????????????????????????????????? | | """"""" # #????????????????????????????????? | | """"""" # #????######??????????????????????? | | # T????# ??????????????????????? | | ##"######## ????# ""?????????????????????? | | ?###??????# #????# """"???????????????????? | | ??????????# #????# """"#?????? ???????????? | | ??????????# #????# * """"#????? ???????????? | | ??????????? ?????# """"#?????"""??????????? | | ??????????? ?????# """"#?????""" ?????????? | | ?????????????????????# #?????""" ?????????? | | ?????????????????????# @% #??????? ????????? | | ??????????? ##########l#############+######### | | ??????????? g | | ??????????? | | ??????????? | | ??????????? | | ??????????? | | ???????????? ##########+######+################ | | ????????????? ?????????????????# #????? | | ???????????????????????????????# ###### | | ??????????????????????#????????# # | | ??????????????????????# ??????# # | | ??????????????????????# ????# """" """" # | | ??????????????????????# ??# """" """" # | | ??????????????????????# # """" """" # | | ??????????????????????# + """" """" # | | ??????????????????????# = # """" """" # | | ??????????????????????#######??# """" """" # | | ???????????????????????????????# # | | ???????????????????????????????# # | | ???????????????????????????????############## | | ????????????????????????????????????????????# | | ????????????????????????????????????????????# | | ????????????????????????????????????????????# | | ????????????????????????????????????????????# | +----------------------------------------------------+ Best States ------------- Heat Dissipation 61 Energy Generation 15 Energy Capacity 280 Matter Stores 300 Matter Capacity 300 Sight Range 20 Robot Scan Range 20 Terrain Scan Density 10 ECM Strength 1 Armor Coverage 225 Evasion (%) 64 Recoil Reduction 4 Offensive Hacking 20 Item Schematics ----------------- Exp. Sensor Array | -8/Materials | Scanalyzed Imp. Light Armor Plating | -7/Factory | Scanalyzed Imp. Medium Armor Plating | -7/Factory | Scanalyzed Robot Schematics ------------------ None Fabricated ------------ Nothing Alien Tech Used ----------------- None Achievements -------------- None Challenges ------------ None Game ------ Seed LongswordBlastFragment Manual? 0 Play Time 01:26:21 Cumulative 128.0 hours Start 2024.06.03 @ 17:59:51 End 2024.06.03 @ 19:35:36 Sessions 1 Manual Loads 0 Difficulty Rogue Special Mode None Game No. 111 Rogue 106 Adventurer 5 Explorer 0 Win Type - Total 2 Types 2/0/0/0/0/0/0/0/0 Lore% 60 Gallery% 68 Achievement% 47 Wizard Run 0 Options --------- Layout 2 ASCII 0 Keyboard 0 Movement Mouse Keybinds 0 Fullscreen 2 Font 24/Smallcaps Map View 50x44 Zoom Use 0% Tactical HUD 1 Map Filters NONE Filters NONE Steam 1 RUN: 84f03ea4-0eee-492f-975a-8b0914542a89